fUSD/lending_fUSD_20250820
["ID","MTS","AMOUNT","RATE_DAILY","PERIOD"]
[380381767,1755719465185,-162.4037323,0.0002192,4]
[380381768,1755719465194,-162.4,0.0002192,4]
[380381769,1755719465204,-227.36522522,0.0002192,4]
[380381770,1755719465215,-227.36522522,0.0002192,4]
[380381771,1755719465225,-227.36522522,0.0002192,4]
[380381772,1755719465235,-227.36522522,0.0002192,4]
[380381773,1755719465244,-227.36522522,0.0002192,4]
[380381774,1755719465254,-227.36522522,0.0002192,4]
[380381775,1755719465264,-227.36522522,0.0002192,4]
[380381776,1755719465275,-227.36522522,0.0002192,4]
[380381777,1755719465284,-227.36522522,0.0002192,4]
[380381778,1755719465294,-227.36522522,0.0002192,4]
[380381779,1755719465303,-227.36522522,0.0002192,4]
[380381780,1755719465313,-227.36522522,0.0002192,4]
[380381781,1755719465323,-227.36522522,0.0002192,4]
[380381782,1755719465332,-227.36522522,0.0002192,4]
[380381783,1755719465342,-227.36522522,0.0002192,4]
[380381784,1755719465352,-227.36522522,0.0002192,4]
[380381785,1755719465361,-227.36522522,0.0002192,4]
[380381786,1755719465371,-227.36522522,0.0002192,4]
[380381787,1755719465381,-227.36522522,0.0002192,4]
[380381788,1755719465390,-227.36,0.0002192,4]
[380381789,1755719465400,-268.84343388,0.0002194,2]
[380381790,1755719465410,-2185.44,0.00021945,30]
[380381791,1755719465421,-717.0,0.00021949,2]
[380381792,1755719465433,-6090.0,0.00021949,2]
[380381793,1755719465443,-4152.0,0.00021949,2]
[380381794,1755719465453,-21500.0,0.00021949,2]
[380381795,1755719465463,-1078.27,0.00021957,2]
[380381796,1755719465473,-332.0,0.00021957,2]
[380381797,1755719465483,-538.24,0.00021957,2]
[380381798,1755719465492,-166.0,0.00021957,2]
[380381799,1755719465502,-798.85,0.00021964,2]
[380381800,1755719465512,-936.92,0.00021964,2]
[380381801,1755719465522,-700.0,0.0002197,2]
[380381802,1755719465532,-1000.0,0.0002197,2]
[380381803,1755719465542,-700.0,0.0002197,2]
[380381804,1755719465552,-150.0,0.00021973,2]
[380381805,1755719465561,-6011.2843661,0.00021973,2]
[380381806,1755719465570,-300.0,0.00021984,2]
[380381807,1755719465580,-300.0,0.00021984,2]
[380381808,1755719465589,-300.0,0.00021984,2]
[380381809,1755719465600,-300.0,0.00021984,2]
[380381810,1755719465609,-666.0,0.00021984,2]
[380381811,1755719465619,-8265.2620685,0.00021985,2]
[380381812,1755719465629,-9231.7997642,0.00021985,2]
[380381813,1755719465638,-10198.3374598,0.00021985,2]
[380381814,1755719465648,-300.0,0.00021989,2]
[380381815,1755719465657,-300.0,0.00021989,2]
[380381816,1755719465666,-300.0,0.00021989,2]
[380381817,1755719465675,-300.0,0.00021989,2]
[380381818,1755719465684,-15642.50085419,0.0002199,2]
[380381819,1755719465693,-151.0,0.0002199,7]
[380381820,1755719465701,-151.0,0.0002199,7]
[380381821,1755719465710,-669.701929,0.0002199,7]
[380381822,1755719465720,-669.701929,0.0002199,7]
[380381823,1755719465729,-669.701929,0.0002199,7]
[380381824,1755719465739,-669.701931,0.0002199,7]
[380381825,1755719465748,-151.0,0.0002199,7]
[380381826,1755719465758,-2384.71469546,0.00021996,2]
[380381827,1755719465767,-398.93550161,0.00021997,2]
[380381828,1755719465776,-300.0,0.00021997,2]
[380381829,1755719465786,-300.0,0.00021997,2]
[380381830,1755719465795,-300.0,0.00021997,2]
[380381831,1755719465804,-300.0,0.00021997,2]
[380381832,1755719465814,-300.0,0.00021997,2]
[380381833,1755719465824,-300.0,0.00021997,2]
[380381834,1755719465833,-2000.0,0.00021998,2]
[380381835,1755719465843,-666.0,0.00021998,2]
[380381836,1755719465852,-300.0,0.00021998,2]
[380381837,1755719465862,-300.0,0.00021998,2]
[380381838,1755719465871,-300.0,0.00021998,2]
[380381839,1755719465881,-300.0,0.00021998,2]
[380381840,1755719465890,-2000.0,0.00021999,2]
[380381841,1755719465900,-2000.0,0.00021999,2]
[380381842,1755719465910,-2000.0,0.00021999,2]
[380381843,1755719465919,-2000.0,0.00021999,2]
[380381844,1755719465929,-44341.8459716,0.00021999,2]
[380381845,1755719465938,-164.0425238,0.00021999,2]
[380381846,1755719465947,-1000.0,0.00021999,2]
[380381847,1755719465956,-666.0,0.00021999,2]
[380381848,1755719465966,-180.34262481,0.00021999,2]
[380381849,1755719465975,-151.0,0.00021999,7]
[380381850,1755719465985,-151.0,0.00021999,7]
[380381851,1755719465994,-151.0,0.00021999,7]
[380381852,1755719466004,-151.0,0.00021999,7]
[380381853,1755719466013,-151.0,0.00021999,7]
[380381854,1755719466023,-151.0,0.00021999,7]
[380381855,1755719466033,-151.0,0.00021999,7]
[380381856,1755719466043,-151.0,0.00021999,7]
[380381857,1755719466053,-151.26703,0.00021999,7]
[380381858,1755719466063,-151.0,0.00021999,7]
[380381859,1755719466072,-151.0,0.00021999,7]
[380381860,1755719466081,-151.0,0.00021999,7]
[380381861,1755719466091,-151.0,0.00021999,7]
[380381862,1755719466101,-151.0,0.00021999,7]
[380381863,1755719466111,-163.078928,0.00021999,7]
[380381864,1755719466120,-163.078928,0.00021999,7]
[380381865,1755719466130,-163.078928,0.00021999,7]
[380381866,1755719466140,-163.078928,0.00021999,7]
[380381867,1755719466151,-151.0,0.00021999,7]
[380381868,1755719466160,-151.0,0.00021999,7]
[380381869,1755719466169,-151.0,0.00021999,7]
[380381870,1755719466178,-151.0,0.00021999,7]
[380381871,1755719466187,-151.0,0.00021999,7]
[380381872,1755719466196,-241.636529,0.00021999,7]
[380381873,1755719466206,-300.0,0.00021999,3]
[380381874,1755719466215,-151.0,0.00021999,7]
[380381875,1755719466224,-301.148058,0.00021999,3]
[380381876,1755719466234,-151.0,0.00021999,7]
[380381877,1755719466243,-300.0,0.00021999,2]
[380381878,1755719466253,-156.358238,0.00021999,7]
[380381879,1755719466262,-151.0,0.00021999,7]
[380381880,1755719466271,-194.83782,0.00021999,7]
[380381881,1755719466282,-194.83782,0.00021999,7]
[380381882,1755719466291,-194.83782,0.00021999,7]
[380381883,1755719466300,-194.83782,0.00021999,7]
[380381884,1755719466309,-151.0,0.00021999,7]
[380381885,1755719466319,-151.0,0.00021999,7]
[380381886,1755719466328,-151.0,0.00021999,7]
[380381887,1755719466337,-151.0,0.00021999,7]
[380381888,1755719466347,-151.0,0.00021999,7]
[380381889,1755719466356,-300.0,0.00021999,2]
[380381890,1755719466365,-151.0,0.00021999,7]
[380381891,1755719466374,-151.0,0.00021999,7]
[380381892,1755719466383,-151.454405,0.00021999,7]
[380381893,1755719466392,-151.0,0.00021999,7]
[380381894,1755719466406,-300.0,0.00021999,2]
[380381895,1755719466416,-291.670427,0.00021999,7]
[380381896,1755719466428,-291.670427,0.00021999,7]
[380381897,1755719466438,-291.670427,0.00021999,7]
[380381898,1755719466448,-291.670427,0.00021999,7]
[380381899,1755719466458,-151.0,0.00021999,7]
[380381900,1755719466468,-151.0,0.00021999,7]
[380381901,1755719466478,-151.0,0.00021999,7]
[380381902,1755719466487,-151.0,0.00021999,7]
[380381903,1755719466497,-203.849041,0.00021999,7]
[380381904,1755719466510,-203.849041,0.00021999,7]
[380381905,1755719466520,-151.0,0.00021999,7]
[380381906,1755719466531,-233.970271,0.00021999,7]
[380381907,1755719466540,-203.849041,0.00021999,7]
[380381908,1755719466550,-233.970271,0.00021999,7]
[380381909,1755719466560,-203.849035,0.00021999,7]
[380381910,1755719466569,-233.970271,0.00021999,7]
[380381911,1755719466578,-233.970267,0.00021999,7]
[380381912,1755719466587,-151.0,0.00021999,7]
[380381913,1755719466597,-369.758496,0.00021999,7]
[380381914,1755719466607,-369.758496,0.00021999,7]
[380381915,1755719466617,-151.0,0.00021999,7]
[380381916,1755719466626,-369.758496,0.00021999,7]
[380381917,1755719466636,-369.758488,0.00021999,7]
[380381918,1755719466646,-151.0,0.00021999,7]
[380381919,1755719466656,-666.0,0.00021999,2]
[380381920,1755719466666,-185.091279,0.00021999,7]
[380381921,1755719466675,-185.091279,0.00021999,7]
[380381922,1755719466684,-151.0,0.00021999,7]
[380381923,1755719466694,-151.0,0.00021999,7]
[380381924,1755719466703,-151.0,0.00021999,7]
[380381925,1755719466713,-185.091279,0.00021999,7]
[380381926,1755719466722,-185.091278,0.00021999,7]
[380381927,1755719466731,-1982.68,0.00021999,2]
[380381928,1755719466741,-300.0,0.00021999,2]
[380381929,1755719466750,-151.0,0.00021999,7]
[380381930,1755719466760,-275.187179,0.00021999,7]
[380381931,1755719466769,-275.187179,0.00021999,7]
[380381932,1755719466780,-275.187179,0.00021999,7]
[380381933,1755719466790,-275.187171,0.00021999,7]
[380381934,1755719466799,-4940.116629,0.00021999,7]
[380381935,1755719466808,-4940.116629,0.00021999,7]
[380381936,1755719466818,-232.086826,0.00021999,7]
[380381937,1755719466828,-4940.116629,0.00021999,7]
[380381938,1755719466838,-151.0,0.00021999,7]
[380381939,1755719466848,-232.086826,0.00021999,7]
[380381940,1755719466858,-4940.116627,0.00021999,7]
[380381941,1755719466868,-232.086826,0.00021999,7]
[380381942,1755719466878,-151.0,0.00021999,7]
[380381943,1755719466888,-232.086827,0.00021999,7]
[380381944,1755719466899,-419.208787,0.00021999,7]
[380381945,1755719466909,-151.0,0.00021999,7]
[380381946,1755719466919,-419.208787,0.00021999,7]
[380381947,1755719466929,-199.468882,0.00021999,7]
[380381948,1755719466938,-151.0,0.00021999,7]
[380381949,1755719466948,-199.687516,0.00021999,7]
[380381950,1755719466957,-419.208787,0.00021999,7]
[380381951,1755719466966,-199.468882,0.00021999,7]
[380381952,1755719466976,-419.20879,0.00021999,7]
[380381953,1755719466985,-199.687516,0.00021999,7]
[380381954,1755719466994,-199.468882,0.00021999,7]
[380381955,1755719467004,-199.687516,0.00021999,7]
[380381956,1755719467013,-199.468888,0.00021999,7]
[380381957,1755719467023,-199.687526,0.00021999,7]
[380381958,1755719467034,-151.0,0.00021999,7]
[380381959,1755719467044,-199.663246,0.00021999,7]
[380381960,1755719467054,-199.663246,0.00021999,7]
[380381961,1755719467063,-199.663246,0.00021999,7]
[380381962,1755719467073,-199.663247,0.00021999,7]
[380381963,1755719467082,-151.0,0.00021999,7]
[380381964,1755719467092,-300.0,0.00021999,2]
[380381965,1755719467101,-151.0,0.00021999,7]
[380381966,1755719467112,-151.0,0.00021999,7]
[380381967,1755719467121,-300.0,0.00021999,2]
[380381968,1755719467131,-151.0,0.00021999,7]
[380381969,1755719467141,-151.0,0.00021999,7]
[380381970,1755719467151,-233.505433,0.00021999,7]
[380381971,1755719467161,-151.0,0.00021999,7]
[380381972,1755719467171,-151.0,0.00021999,7]
[380381973,1755719467181,-151.0,0.00021999,7]
[380381974,1755719467190,-151.0,0.00021999,7]
[380381975,1755719467200,-226.341115,0.00021999,7]
[380381976,1755719467209,-151.0,0.00021999,7]
[380381977,1755719467220,-151.0,0.00021999,7]
[380381978,1755719467230,-226.341115,0.00021999,7]
[380381979,1755719467240,-306.52494,0.00021999,7]
[380381980,1755719467250,-151.0,0.00021999,7]
[380381981,1755719467259,-151.0,0.00021999,7]
[380381982,1755719467269,-226.341115,0.00021999,7]
[380381983,1755719467282,-306.52494,0.00021999,7]
[380381984,1755719467291,-226.341122,0.00021999,7]
[380381985,1755719467301,-306.52494,0.00021999,7]
[380381986,1755719467311,-306.524938,0.00021999,7]
[380381987,1755719467321,-328.680616,0.00021999,7]
[380381988,1755719467331,-328.680616,0.00021999,7]
[380381989,1755719467340,-151.0,0.00021999,7]
[380381990,1755719467350,-328.680616,0.00021999,7]
[380381991,1755719467361,-328.680617,0.00021999,7]
[380381992,1755719467370,-278.859009,0.00021999,7]
[380381993,1755719467380,-151.0,0.00021999,7]
[380381994,1755719467390,-1381.597501,0.00021999,7]
[380381995,1755719467400,-1381.597501,0.00021999,7]
[380381996,1755719467409,-1381.597501,0.00021999,7]
[380381997,1755719467420,-1381.597505,0.00021999,7]
[380381998,1755719467437,-301.787056,0.00021999,7]
[380381999,1755719467447,-301.787056,0.00021999,7]
[380382000,1755719467456,-301.787056,0.00021999,7]
[380382001,1755719467466,-301.787054,0.00021999,7]
[380382002,1755719467477,-182.730724,0.00021999,7]
[380382003,1755719467487,-151.0,0.00021999,7]
[380382004,1755719467496,-182.730724,0.00021999,7]
[380382005,1755719467506,-151.0,0.00021999,7]
[380382006,1755719467516,-151.0,0.00021999,7]
[380382007,1755719467526,-182.730724,0.00021999,7]
[380382008,1755719467537,-340.375925,0.00021999,7]
[380382009,1755719467546,-340.375925,0.00021999,7]
[380382010,1755719467556,-151.0,0.00021999,7]
[380382011,1755719467566,-151.0,0.00021999,7]
[380382012,1755719467575,-340.375925,0.00021999,7]
[380382013,1755719467584,-340.37593,0.00021999,7]
[380382014,1755719467593,-151.0,0.00021999,7]
[380382015,1755719467602,-151.0,0.00021999,7]
[380382016,1755719467612,-2533023.09721413,0.00022,2]
[380382017,1755719467621,-778.00152969,0.00022,7]
[380382018,1755719467630,-11408.76951654,0.00022,7]
[380382019,1755719467639,-816.65396533,0.00022,15]
[380382020,1755719467648,-160.97,0.00022,2]
[380382021,1755719467658,-5598.48018942,0.00022,3]
[380382022,1755719467667,-1466.39571027,0.00022,2]
[380382023,1755719467676,-14000.0,0.00022,7]
[380382024,1755719467685,-2329339.5060653,0.00022,2]
[380382025,1755719467694,-151.0,0.00022,7]
[380382026,1755719467704,-151.0,0.00022,7]
[380382027,1755719467713,-151.0,0.00022,7]
[380382028,1755719467722,-161.993572,0.00022,7]
[380382029,1755719467731,-151.0,0.00022,7]
[380382030,1755719467740,-151.0,0.00022,7]
[380382031,1755719467749,-705878.71872689,0.00022,2]
[380382032,1755719467759,-151.0,0.00022,7]
[380382033,1755719467768,-151.0,0.00022,7]
[380382034,1755719467778,-151.0,0.00022,7]
[380382035,1755719467787,-151.0,0.00022,7]
[380382036,1755719467796,-151.0,0.00022,7]
[380382037,1755719467805,-151.0,0.00022,7]
[380382038,1755719467815,-163.078928,0.00022,7]
[380382039,1755719467824,-163.078928,0.00022,7]
[380382040,1755719467833,-163.078928,0.00022,7]
[380382041,1755719467842,-163.078928,0.00022,7]
[380382042,1755719467851,-163.078928,0.00022,7]
[380382043,1755719467860,-163.078928,0.00022,7]
[380382044,1755719467870,-163.078928,0.00022,7]
[380382045,1755719467879,-163.07892214,0.00022,7]
[380382046,1755719467888,-151.0,0.00022,7]
[380382047,1755719467897,-151.0,0.00022,7]
[380382048,1755719467906,-151.0,0.00022,7]
[380382049,1755719467916,-151.0,0.00022,7]
[380382050,1755719467925,-151.0,0.00022,7]
[380382051,1755719467934,-151.0,0.00022,7]
[380382052,1755719467944,-151.0,0.00022,7]
[380382053,1755719467953,-151.0,0.00022,7]
[380382054,1755719467962,-265.988365,0.00022,7]
[380382055,1755719467972,-151.0,0.00022,7]
[380382056,1755719467981,-151.0,0.00022,7]
[380382057,1755719467991,-151.0,0.00022,7]
[380382058,1755719468000,-151.0,0.00022,7]
[380382059,1755719468010,-197.620959,0.00022,7]
[380382060,1755719468019,-151.0,0.00022,7]
[380382061,1755719468028,-194.83782,0.00022,7]
[380382062,1755719468038,-194.83782,0.00022,7]
[380382063,1755719468047,-194.83782,0.00022,7]
[380382064,1755719468058,-194.83782,0.00022,7]
[380382065,1755719468068,-151.0,0.00022,7]
[380382066,1755719468077,-151.0,0.00022,7]
[380382067,1755719468086,-151.0,0.00022,7]
[380382068,1755719468096,-151.0,0.00022,7]
[380382069,1755719468106,-151.0,0.00022,7]
[380382070,1755719468116,-151.0,0.00022,7]
[380382071,1755719468125,-151.0,0.00022,7]
[380382072,1755719468134,-151.0,0.00022,7]
[380382073,1755719468143,-291.670427,0.00022,7]
[380382074,1755719468154,-291.670427,0.00022,7]
[380382075,1755719468164,-291.670427,0.00022,7]
[380382076,1755719468174,-291.670433,0.00022,7]
[380382077,1755719468183,-151.0,0.00022,7]
[380382078,1755719468193,-151.0,0.00022,7]
[380382079,1755719468203,-151.0,0.00022,7]
[380382080,1755719468212,-151.0,0.00022,7]
[380382081,1755719468223,-394.0,0.00022,2]
[380382082,1755719468232,-426.0,0.00022,2]
[380382083,1755719468242,-212.04014818,0.00022,3]
[380382084,1755719468251,-458.46930693,0.00022,3]
[380382085,1755719468261,-458.46930693,0.00022,7]
[380382086,1755719468270,-4000.0,0.00022,4]
[380382087,1755719468280,-300.0,0.00022099,2]
[380382088,1755719468289,-300.0,0.00022099,2]
[380382089,1755719468298,-200.0,0.000221,2]
[380382090,1755719468308,-300.0,0.00022148,2]
[380382091,1755719468317,-300.0,0.00022148,2]
[380382092,1755719468327,-720.64912876,0.00022172,2]
[380382093,1755719468337,-559.59679059,0.00022172,2]
[380382094,1755719468346,-394.0,0.00022192,7]
[380382095,1755719468355,-426.0,0.00022192,7]
[380382096,1755719468364,-500.0,0.00022192,2]
[380382097,1755719468374,-2000.0,0.000222,2]
[380382098,1755719468383,-6260.34,0.000223,7]
[380382099,1755719468393,-151.0,0.00022318,2]
[380382100,1755719468402,-151.0,0.00022318,2]
[380382101,1755719468412,-224.0,0.0002235,2]
[380382102,1755719468422,-394.0,0.00022466,7]
[380382103,1755719468441,-426.0,0.00022466,7]
[380382104,1755719468455,-500.0,0.00022466,2]
[380382105,1755719468465,-200.0,0.0002251,7]
[380382106,1755719468474,-250.0,0.00022521,2]
[380382107,1755719468484,-151.0,0.00022592,2]
[380382108,1755719468493,-2583.0,0.00022596,2]
[380382109,1755719468503,-667.09,0.000227,7]
[380382110,1755719468512,-128320.82,0.000227,7]
[380382111,1755719468521,-200.0,0.0002271,2]
[380382112,1755719468532,-394.0,0.0002274,7]
[380382113,1755719468541,-426.0,0.0002274,7]
[380382114,1755719468551,-500.0,0.0002274,2]
[380382115,1755719468561,-200.0,0.000228,2]
[380382116,1755719468571,-600.0,0.00022822,2]
[380382117,1755719468580,-255.25,0.0002284,2]
[380382118,1755719468590,-2580.0,0.00022845,2]
[380382119,1755719468599,-151.0,0.00022866,2]
[380382120,1755719468609,-151.0,0.00022866,2]
[380382121,1755719468618,-1508.0,0.0002288,2]
[380382122,1755719468627,-2580.0,0.00022886,2]
[380382123,1755719468638,-446.31868186,0.00022892,2]
[380382124,1755719468648,-666.0,0.00022899,2]
[380382125,1755719468658,-2580.0,0.00022902,2]
[380382126,1755719468668,-200.0,0.0002291,7]
[380382127,1755719468678,-1508.0,0.00022922,2]
[380382128,1755719468687,-346.58,0.00022968,2]
[380382129,1755719468697,-408.32,0.00022968,2]
[380382130,1755719468706,-2580.0,0.00022974,2]
[380382131,1755719468715,-2583.0,0.00022974,2]
[380382132,1755719468725,-900.0,0.00022982,2]
[380382133,1755719468735,-600.0,0.00022982,2]
[380382134,1755719468744,-468.71,0.00022982,2]
[380382135,1755719468754,-798.85,0.00022982,2]
[380382136,1755719468763,-1005.48283241,0.00023,7]
[380382137,1755719468773,-843.97594471,0.00023,3]
[380382138,1755719468783,-1321.0,0.00023,7]
[380382139,1755719470816,-394.0,0.00023014,7]
[380382140,1755719470834,-426.0,0.00023014,7]
[380382141,1755719470875,-394.0,0.00023014,7]
[380382142,1755719470905,-426.0,0.00023014,7]
[380382143,1755719470915,-500.0,0.00023014,2]
[380382144,1755719470924,-2583.0,0.00023036,2]
[380382145,1755719470934,-350.0,0.00023068,2]
[380382146,1755719470943,-704.68391134,0.00023089,2]
[380382147,1755719470953,-300.0,0.00023099,2]
[380382148,1755719470963,-332.10828572,0.00023099,2]
[380382149,1755719470973,-666.0,0.00023099,2]
[380382150,1755719470982,-300.0,0.00023099,2]
[380382151,1755719470992,-200.0,0.000231,7]
[380382152,1755719471002,-430.0,0.00023113,2]
[380382153,1755719471012,-334.5472959,0.00023139,2]
[380382154,1755719471021,-287.61899177,0.00023139,2]
[380382155,1755719471031,-1341.2988433,0.00023146,2]
[380382156,1755719471043,-300.0,0.00023147,2]
[380382157,1755719471053,-666.0,0.00023147,2]
[380382158,1755719471062,-300.0,0.00023147,2]
[380382159,1755719471072,-9894.0031929,0.00023173,2]
[380382160,1755719471081,-430.0,0.00023239,2]
[380382161,1755719471091,-2580.0,0.00023265,2]
[380382162,1755719471101,-1321.0,0.00023288,7]
[380382163,1755719471111,-470.34296495,0.00023288,2]
[380382164,1755719471121,-2580.0,0.00023293,2]
[380382165,1755719471131,-2580.0,0.00023301,2]
[380382166,1755719471140,-2580.0,0.00023304,2]
[380382167,1755719471150,-2580.0,0.00023352,2]
[380382168,1755719471159,-151.0,0.00023361,2]
[380382169,1755719471169,-600.0,0.0002337,2]
[380382170,1755719471179,-2580.0,0.00023387,2]
[380382171,1755719471188,-299.2842257,0.00023407,2]
[380382172,1755719471198,-261.3309871,0.00023414,2]
[380382173,1755719471207,-151.0,0.00023414,2]
[380382174,1755719471217,-2207.6505169,0.00023435,2]
[380382175,1755719471227,-163.3867032,0.00023452,30]
[380382176,1755719471236,-430.0,0.0002349,2]
[380382177,1755719471246,-200.0,0.0002351,7]
[380382178,1755719471256,-220.0,0.0002353,2]
[380382179,1755719471265,-1000.0,0.00023542,2]
[380382180,1755719471275,-666.0,0.00023561,2]
[380382181,1755719471286,-2000.0,0.00023561,2]
[380382182,1755719471297,-1321.0,0.00023562,7]
[380382183,1755719471307,-1000.0,0.00023585,2]
[380382184,1755719471317,-2580.0,0.00023605,2]
[380382185,1755719471327,-450.0,0.00023616,2]
[380382186,1755719471337,-430.0,0.00023625,2]
[380382187,1755719471346,-430.89973962,0.0002369,2]
[380382188,1755719471356,-2580.0,0.00023696,2]
[380382189,1755719471367,-150.0,0.000237,2]
[380382190,1755719471376,-258.80205432,0.00023709,2]
[380382191,1755719471386,-300.0,0.0002371,7]
[380382192,1755719471397,-1321.0,0.00023836,7]
[380382193,1755719471407,-1000.0,0.000239,2]
[380382194,1755719471417,-200.0,0.0002391,7]
[380382195,1755719471433,-600.0,0.00023918,2]
[380382196,1755719471445,-1597.48,0.00023935,2]
[380382197,1755719471455,-798.85,0.00023935,2]
[380382198,1755719471465,-495.14,0.00023935,2]
[380382199,1755719471476,-798.85,0.00023941,2]
[380382200,1755719471487,-1341.67,0.00023941,2]
[380382201,1755719471498,-973.57,0.00023946,2]
[380382202,1755719471511,-944.37,0.00023946,2]
[380382203,1755719471522,-151.0,0.00023962,2]
[380382204,1755719471531,-1000.0,0.00023967,2]
[380382205,1755719471542,-791.17675997,0.0002397,2]
[380382206,1755719471551,-700.0,0.0002397,2]
[380382207,1755719471562,-300.0,0.00023999,2]
[380382208,1755719471571,-666.0,0.00023999,2]
[380382209,1755719471581,-300.0,0.00023999,2]
[380382210,1755719471591,-400.0,0.00024,2]
[380382211,1755719471602,-32734.00242937,0.00024,2]
[380382212,1755719471611,-400.0,0.00024,2]
[380382213,1755719471621,-4993.39442099,0.00024,4]
[380382214,1755719471630,-933.40618599,0.00024,20]
[380382215,1755719471640,-1800.0,0.00024,25]
[380382216,1755719471649,-2171.22688996,0.00024,30]
[380382217,1755719471659,-6260.34,0.00024,7]
[380382218,1755719471669,-4000.0,0.00024,4]
[380382219,1755719471679,-150.0,0.00024006,2]
[380382220,1755719471688,-2969.0,0.00024018,2]
[380382221,1755719471697,-900.0,0.00024078,2]
[380382222,1755719471707,-600.0,0.00024078,2]
[380382223,1755719471716,-500.0,0.00024078,2]
[380382224,1755719471726,-200.0,0.000241,7]
[380382225,1755719471735,-1321.0,0.0002411,7]
[380382226,1755719471745,-151.0,0.00024131,2]
[380382227,1755719471755,-405.0,0.00024164,7]
[380382228,1755719471766,-427.0,0.00024164,7]
[380382229,1755719471777,-550.0,0.00024164,2]
[380382230,1755719471788,-394.0,0.00024164,7]
[380382231,1755719471797,-1321.0,0.00024164,7]
[380382232,1755719471807,-426.0,0.00024164,7]
[380382233,1755719471817,-1000.0,0.00024183,2]
[380382234,1755719471827,-1982.68,0.00024191,6]
[380382235,1755719471836,-450.0,0.00024203,2]
[380382236,1755719471846,-1321.0,0.00024384,7]
[380382237,1755719471856,-300.0,0.00024399,2]
[380382238,1755719471865,-128320.82,0.000244,7]
[380382239,1755719471875,-1000.0,0.00024418,2]
[380382240,1755719471885,-150.0,0.0002443,2]
[380382241,1755719471895,-1183.77,0.0002443,2]
[380382242,1755719471904,-150.0,0.0002443,2]
[380382243,1755719471914,-150.0,0.00024451,2]
[380382244,1755719471924,-600.0,0.00024466,2]
[380382245,1755719471934,-704.68391134,0.00024479,2]
[380382246,1755719471944,-1000.0,0.0002449,2]
[380382247,1755719471953,-346.92554585,0.00024508,2]
[380382248,1755719471963,-298.26089446,0.00024508,2]
[380382249,1755719471973,-747.8093786,0.00024509,2]
[380382250,1755719471982,-286.8585593,0.0002451,2]
[380382251,1755719471992,-200.0,0.0002451,7]
[380382252,1755719472001,-500.0,0.00024532,2]
[380382253,1755719472011,-150.0,0.00024544,2]
[380382254,1755719472021,-500.0,0.00024547,2]
[380382255,1755719472031,-3084.68937508,0.000246,3]
[380382256,1755719472042,-141190.23157638,0.00024603,2]
[380382257,1755719472052,-1913.13212349,0.00024603,2]
[380382258,1755719472062,-2519.20565833,0.00024608,2]
[380382259,1755719472072,-141190.23157638,0.00024609,2]
[380382260,1755719472081,-1913.13212349,0.00024609,2]
[380382261,1755719472091,-302.01126476,0.00024615,2]
[380382262,1755719472101,-1913.13212349,0.00024616,2]
[380382263,1755719472111,-141190.23157638,0.00024616,2]
[380382264,1755719472120,-1833.98411464,0.00024617,2]
[380382265,1755719472130,-3426.2172668,0.00024619,2]
[380382266,1755719472139,-1833.98411464,0.00024627,2]